fUSD/lending_fUSD_20250221
["ID","MTS","AMOUNT","RATE_DAILY","PERIOD"]
[353993015,1740175861720,-761.15,0.00012018,2]
[353993016,1740175861730,-694.42,0.00012018,2]
[353993017,1740175861739,-999.84,0.00012018,2]
[353993018,1740175861748,-2978.62,0.00012018,2]
[353993019,1740175861758,-531.77,0.00012018,2]
[353993020,1740175861768,-1077.31,0.00012018,2]
[353993021,1740175861778,-143.96797908,0.00012018,2]
[353993022,1740175861790,-356.03202092,0.00012018,2]
[353993023,1740175861800,-999.03,0.00012018,2]
[353993024,1740175861809,-772.25,0.00012018,2]
[353993025,1740175861820,-687.87,0.00012018,2]
[353993026,1740175861830,-798.38,0.00012018,2]
[353993027,1740175861839,-1330.6,0.00012018,2]
[353993028,1740175861850,-580.79,0.00012018,2]
[353993029,1740175861860,-500.0,0.00012018,2]
[353993030,1740175861871,-1652.61,0.00012018,2]
[353993031,1740175861881,-584.29,0.00012018,2]
[353993032,1740175861891,-500.0,0.00012018,2]
[353993033,1740175861901,-785.20061747,0.00012018,2]
[353993034,1740175861912,-279.36938253,0.00012018,2]
[353993035,1740175861922,-1257.4,0.00012018,2]
[353993036,1740175861932,-617.67,0.00012018,2]
[353993037,1740175861941,-1008.78,0.00012018,2]
[353993038,1740175861951,-934.47,0.00012018,2]
[353993039,1740175861962,-607.43,0.00012018,2]
[353993040,1740175861971,-1149.16,0.00012018,2]
[353993041,1740175861981,-557.37,0.00012018,2]
[353993042,1740175861990,-500.0,0.00012018,2]
[353993043,1740175862000,-1059.67,0.00012018,2]
[353993044,1740175862010,-713.85,0.00012018,2]
[353993045,1740175862019,-619.22,0.00012018,2]
[353993046,1740175862028,-500.0,0.00012018,2]
[353993047,1740175862038,-500.0,0.00012018,2]
[353993048,1740175862047,-877.35,0.00012018,2]
[353993049,1740175862056,-1059.0,0.00012018,2]
[353993050,1740175862066,-1371.99,0.00012018,2]
[353993051,1740175862077,-1195.87,0.00012018,2]
[353993052,1740175862086,-500.0,0.00012018,2]
[353993053,1740175862095,-1159.59,0.00012018,2]
[353993054,1740175862105,-500.0,0.00012018,2]
[353993055,1740175862116,-716.76,0.00012018,2]
[353993056,1740175862125,-500.0,0.00012018,2]
[353993057,1740175862135,-2524.55,0.00012018,2]
[353993058,1740175862144,-500.0,0.00012018,2]
[353993059,1740175862154,-500.0,0.00012019,2]
[353993060,1740175862163,-500.0,0.00012019,2]
[353993061,1740175862172,-831.16,0.00012019,2]
[353993062,1740175862182,-672.19,0.00012019,2]
[353993063,1740175862191,-614.03,0.00012019,2]
[353993064,1740175862200,-586.13,0.00012019,2]
[353993065,1740175862210,-500.0,0.00012019,2]
[353993066,1740175862219,-500.0,0.00012019,2]
[353993067,1740175862228,-500.0,0.00012019,2]
[353993068,1740175862238,-500.0,0.00012019,2]
[353993069,1740175862248,-500.0,0.00012019,2]
[353993070,1740175862257,-500.0,0.00012019,2]
[353993071,1740175862266,-500.0,0.00012019,2]
[353993072,1740175862276,-596.02,0.00012019,2]
[353993073,1740175862286,-907.74,0.00012019,2]
[353993074,1740175862296,-505.12,0.00012019,2]
[353993075,1740175862305,-500.0,0.00012019,2]
[353993076,1740175862315,-772.23,0.00012019,2]
[353993077,1740175862324,-633.15,0.00012019,2]
[353993078,1740175862334,-500.0,0.00012019,2]
[353993079,1740175862343,-1053.43,0.00012019,2]
[353993080,1740175862352,-500.0,0.00012019,2]
[353993081,1740175862362,-1338.15,0.00012019,2]
[353993082,1740175862371,-505.52,0.00012019,2]
[353993083,1740175862380,-640.1,0.00012019,2]
[353993084,1740175862390,-500.0,0.00012019,2]
[353993085,1740175862399,-500.0,0.0001202,2]
[353993086,1740175862408,-500.0,0.0001202,2]
[353993087,1740175862417,-500.0,0.0001202,2]
[353993088,1740175862426,-500.0,0.0001202,2]
[353993089,1740175862436,-500.0,0.0001202,2]
[353993090,1740175862445,-500.0,0.0001202,2]
[353993091,1740175862455,-587.93,0.0001202,2]
[353993092,1740175862464,-546.63,0.0001202,2]
[353993093,1740175862474,-515.89,0.0001202,2]
[353993094,1740175862483,-579.03,0.0001202,2]
[353993095,1740175862492,-500.0,0.0001202,2]
[353993096,1740175862501,-500.0,0.0001202,2]
[353993097,1740175862511,-644.72,0.0001202,2]
[353993098,1740175862521,-500.0,0.0001202,2]
[353993099,1740175862530,-712.4,0.0001202,2]
[353993100,1740175862540,-649.39,0.0001202,2]
[353993101,1740175862550,-500.0,0.0001202,2]
[353993102,1740175862560,-1563.0,0.0001202,2]
[353993103,1740175862570,-500.0,0.0001202,2]
[353993104,1740175862580,-1053.07,0.0001202,2]
[353993105,1740175862590,-1338.11,0.0001202,2]
[353993106,1740175862600,-1204.61,0.0001202,2]
[353993107,1740175862611,-524.75,0.0001202,2]
[353993108,1740175862621,-516.44,0.0001202,2]
[353993109,1740175862631,-1032.03,0.0001202,2]
[353993110,1740175862640,-500.0,0.0001202,2]
[353993111,1740175862650,-547.06070173,0.0001202,2]
[353993112,1740175862661,-500.0,0.0001202,2]
[353993113,1740175862671,-500.0,0.0001202,2]
[353993114,1740175862682,-768.2,0.0001202,2]
[353993115,1740175862692,-500.0,0.0001202,2]
[353993116,1740175862702,-785.25,0.0001202,2]
[353993117,1740175862712,-838.82,0.0001202,2]
[353993118,1740175862721,-1010.76,0.0001202,2]
[353993119,1740175862730,-2224.65,0.0001202,2]
[353993120,1740175862740,-500.0,0.0001202,2]
[353993121,1740175862749,-500.0,0.0001202,2]
[353993122,1740175862759,-557.6,0.0001202,2]
[353993123,1740175862768,-500.0,0.0001202,2]
[353993124,1740175862778,-500.0,0.0001202,2]
[353993125,1740175862787,-500.0,0.0001202,2]
[353993126,1740175862797,-1266.0,0.00012037,2]
[353993127,1740175862806,-784.0,0.00012037,2]
[353993128,1740175862815,-907.0,0.00012037,2]
[353993129,1740175862824,-1424.0,0.00012037,2]
[353993130,1740175862837,-4031.0,0.00012037,2]
[353993131,1740175862846,-539.0,0.00012037,2]
[353993132,1740175862855,-300.0,0.00012037,2]
[353993133,1740175862865,-150.0,0.00012037,2]
[353993134,1740175862874,-439.29,0.00012037,2]
[353993135,1740175862883,-150.0,0.00012037,2]
[353993136,1740175862893,-150.0,0.00012037,2]
[353993137,1740175862902,-150.0,0.00012037,2]
[353993138,1740175862911,-150.0,0.00012037,2]
[353993139,1740175862921,-150.0,0.00012037,2]
[353993140,1740175862930,-150.0,0.00012037,2]
[353993141,1740175862939,-877.04,0.00012037,2]
[353993142,1740175862948,-162.64,0.00012044,2]
[353993143,1740175862957,-150.0,0.00012044,2]
[353993144,1740175862967,-150.0,0.00012044,2]
[353993145,1740175862976,-150.0,0.00012059,2]
[353993146,1740175862985,-1000.0,0.0001206,2]
[353993147,1740175862996,-310.74549445,0.00012062,2]
[353993148,1740175863006,-1000.0,0.00012063,2]
[353993149,1740175863015,-150.0,0.00012065,2]
[353993150,1740175863024,-4555.464,0.00012082,2]
[353993151,1740175863034,-195.073,0.00012082,2]
[353993152,1740175863043,-2000.0,0.000121,2]
[353993153,1740175863052,-2000.0,0.000121,2]
[353993154,1740175863062,-2000.0,0.000121,2]
[353993155,1740175863072,-2007.3813,0.000121,2]
[353993156,1740175863083,-2000.0,0.000121,2]
[353993157,1740175863092,-2000.0,0.000121,2]
[353993158,1740175863102,-567.0,0.000121,2]
[353993159,1740175863113,-231.0,0.000121,2]
[353993160,1740175863123,-433.0,0.000121,2]
[353993161,1740175863132,-367.0,0.000121,2]
[353993162,1740175863142,-500.0,0.000121,2]
[353993163,1740175863151,-500.0,0.00012101,2]
[353993164,1740175863161,-500.0,0.00012101,2]
[353993165,1740175863170,-831.16,0.00012101,2]
[353993166,1740175863180,-672.19,0.00012101,2]
[353993167,1740175863190,-614.03,0.00012101,2]
[353993168,1740175863200,-586.13,0.00012101,2]
[353993169,1740175863209,-500.0,0.00012101,2]
[353993170,1740175863219,-500.0,0.00012101,2]
[353993171,1740175863228,-500.0,0.00012101,2]
[353993172,1740175863238,-500.0,0.00012101,2]
[353993173,1740175863247,-500.0,0.00012101,2]
[353993174,1740175863257,-500.0,0.00012101,2]
[353993175,1740175863266,-500.0,0.00012101,2]
[353993176,1740175863276,-596.02,0.00012101,2]
[353993177,1740175863285,-840.36,0.00012101,2]
[353993178,1740175863295,-550.99,0.00012101,2]
[353993179,1740175863305,-907.74,0.00012101,2]
[353993180,1740175863315,-456.441457,0.00012101,2]
[353993181,1740175863325,-505.12,0.00012101,2]
[353993182,1740175863335,-1301.04,0.00012101,2]
[353993183,1740175863345,-660.858377,0.00012101,2]
[353993184,1740175863354,-731.38,0.00012101,2]
[353993185,1740175863364,-500.0,0.00012101,2]
[353993186,1740175863373,-156.722949,0.00012101,2]
[353993187,1740175863383,-643.93,0.00012101,2]
[353993188,1740175863392,-772.23,0.00012101,2]
[353993189,1740175863402,-770.4,0.00012101,2]
[353993190,1740175863412,-633.15,0.00012101,2]
[353993191,1740175863422,-1037.35,0.00012101,2]
[353993192,1740175863431,-500.0,0.00012101,2]
[353993193,1740175863441,-761.15,0.00012101,2]
[353993194,1740175863450,-694.42,0.00012101,2]
[353993195,1740175863460,-1053.43,0.00012101,2]
[353993196,1740175863470,-999.84,0.00012101,2]
[353993197,1740175863480,-500.0,0.00012101,2]
[353993198,1740175863490,-2978.62,0.00012101,2]
[353993199,1740175863499,-531.77,0.00012101,2]
[353993200,1740175863509,-1077.31,0.00012101,2]
[353993201,1740175863519,-1338.15,0.00012101,2]
[353993202,1740175863528,-500.0,0.00012101,2]
[353993203,1740175863538,-999.03,0.00012101,2]
[353993204,1740175863548,-772.25,0.00012101,2]
[353993205,1740175863557,-687.87,0.00012101,2]
[353993206,1740175863567,-798.38,0.00012101,2]
[353993207,1740175863576,-1330.6,0.00012101,2]
[353993208,1740175863586,-580.79,0.00012101,2]
[353993209,1740175863596,-500.0,0.00012101,2]
[353993210,1740175863606,-1652.61,0.00012101,2]
[353993211,1740175863617,-584.29,0.00012101,2]
[353993212,1740175863627,-356.51199515,0.00012101,2]
[353993213,1740175863636,-505.52,0.00012101,2]
[353993214,1740175863646,-1064.57,0.00012101,2]
[353993215,1740175863656,-1257.4,0.00012101,2]
[353993216,1740175863665,-617.67,0.00012101,2]
[353993217,1740175863675,-640.1,0.00012101,2]
[353993218,1740175863684,-1008.78,0.00012101,2]
[353993219,1740175863696,-934.47,0.00012101,2]
[353993220,1740175863705,-155.439232,0.00012101,2]
[353993221,1740175863715,-607.43,0.00012101,2]
[353993222,1740175863724,-1149.16,0.00012101,2]
[353993223,1740175863734,-557.37,0.00012101,2]
[353993224,1740175863744,-500.0,0.00012101,2]
[353993225,1740175863754,-1059.67,0.00012101,2]
[353993226,1740175863763,-713.85,0.00012101,2]
[353993227,1740175863774,-619.22,0.00012101,2]
[353993228,1740175863783,-500.0,0.00012101,2]
[353993229,1740175863793,-500.0,0.00012101,2]
[353993230,1740175863803,-877.35,0.00012101,2]
[353993231,1740175863813,-1059.0,0.00012101,2]
[353993232,1740175863823,-1371.99,0.00012101,2]
[353993233,1740175863833,-1195.87,0.00012101,2]
[353993234,1740175863842,-500.0,0.00012101,2]
[353993235,1740175863852,-1159.59,0.00012101,2]
[353993236,1740175863862,-500.0,0.00012101,2]
[353993237,1740175863871,-716.76,0.00012101,2]
[353993238,1740175863881,-500.0,0.00012101,2]
[353993239,1740175863939,-2524.55,0.00012101,2]
[353993240,1740175863950,-500.0,0.00012101,2]
[353993241,1740175863960,-500.0,0.00012101,2]
[353993242,1740175863971,-500.0,0.00012103,2]
[353993243,1740175863981,-500.0,0.00012103,2]
[353993244,1740175863991,-500.0,0.00012103,2]
[353993245,1740175864002,-500.0,0.00012103,2]
[353993246,1740175864012,-500.0,0.00012103,2]
[353993247,1740175864023,-500.0,0.00012103,2]
[353993248,1740175864032,-587.93,0.00012103,2]
[353993249,1740175864042,-546.63,0.00012103,2]
[353993250,1740175864054,-515.89,0.00012103,2]
[353993251,1740175864064,-579.03,0.00012103,2]
[353993252,1740175864073,-500.0,0.00012103,2]
[353993253,1740175864085,-500.0,0.00012103,2]
[353993254,1740175864095,-644.72,0.00012103,2]
[353993255,1740175864105,-500.0,0.00012103,2]
[353993256,1740175864116,-712.4,0.00012103,2]
[353993257,1740175864126,-649.39,0.00012103,2]
[353993258,1740175864137,-500.0,0.00012103,2]
[353993259,1740175864148,-1563.0,0.00012103,2]
[353993260,1740175864168,-500.0,0.00012103,2]
[353993261,1740175864181,-1053.07,0.00012103,2]
[353993262,1740175864193,-1338.11,0.00012103,2]
[353993263,1740175864203,-1204.61,0.00012103,2]
[353993264,1740175864213,-524.75,0.00012103,2]
[353993265,1740175864223,-516.44,0.00012103,2]
[353993266,1740175864234,-1032.03,0.00012103,2]
[353993267,1740175864244,-500.0,0.00012103,2]
[353993268,1740175864254,-164.58661002,0.00012103,2]
[353993269,1740175864263,-500.0,0.00012103,2]
[353993270,1740175864273,-768.2,0.00012103,2]
[353993271,1740175864282,-500.0,0.00012103,2]
[353993272,1740175864292,-785.25,0.00012103,2]
[353993273,1740175864303,-838.82,0.00012103,2]
[353993274,1740175864313,-1010.76,0.00012103,2]
[353993275,1740175864323,-2224.65,0.00012103,2]
[353993276,1740175864333,-598.64825163,0.00012103,2]
[353993277,1740175864344,-500.0,0.00012103,2]
[353993278,1740175864354,-557.6,0.00012103,2]
[353993279,1740175864364,-500.0,0.00012103,2]
[353993280,1740175864374,-500.0,0.00012103,2]
[353993281,1740175864383,-500.0,0.00012103,2]
[353993282,1740175864394,-150.0,0.0001212,2]
[353993283,1740175864403,-150.0,0.0001212,2]
[353993284,1740175864413,-150.0,0.00012127,2]
[353993285,1740175864423,-500.0,0.00012138,2]
[353993286,1740175864433,-150.0,0.00012141,2]
[353993287,1740175864443,-1000.0,0.00012155,2]
[353993288,1740175864453,-1000.0,0.00012157,2]
[353993289,1740175864463,-1009.0,0.00012161,2]
[353993290,1740175864474,-157.444,0.00012161,2]
[353993291,1740175864485,-3919.0,0.00012161,2]
[353993292,1740175864495,-152.00575293,0.00012164,2]
[353993293,1740175864505,-199.63510383,0.00012164,2]
[353993294,1740175864516,-240.31686733,0.00012164,2]
[353993295,1740175864526,-4460.0,0.00012164,2]
[353993296,1740175864535,-1000.0,0.00012165,2]
[353993297,1740175864544,-150.0,0.00012166,2]
[353993298,1740175864554,-245.39,0.00012167,2]
[353993299,1740175864564,-150.0,0.00012167,2]
[353993300,1740175864574,-150.0,0.00012173,2]
[353993301,1740175864585,-840.36,0.00012183,2]
[353993302,1740175864595,-550.99,0.00012183,2]
[353993303,1740175864606,-456.441457,0.00012183,2]
[353993304,1740175864617,-505.12,0.00012183,2]
[353993305,1740175864628,-1301.04,0.00012183,2]
[353993306,1740175864638,-731.38,0.00012183,2]
[353993307,1740175864648,-660.858377,0.00012183,2]
[353993308,1740175864657,-500.0,0.00012183,2]
[353993309,1740175864667,-643.93,0.00012183,2]
[353993310,1740175864677,-772.23,0.00012183,2]
[353993311,1740175864688,-770.4,0.00012183,2]
[353993312,1740175864699,-1037.35,0.00012183,2]
[353993313,1740175864709,-500.0,0.00012183,2]
[353993314,1740175864719,-761.15,0.00012183,2]
[353993315,1740175864729,-694.42,0.00012183,2]
[353993316,1740175864739,-999.84,0.00012183,2]
[353993317,1740175864748,-2978.62,0.00012183,2]
[353993318,1740175864758,-531.77,0.00012183,2]
[353993319,1740175864768,-1077.31,0.00012183,2]
[353993320,1740175864777,-1338.15,0.00012183,2]
[353993321,1740175864787,-500.0,0.00012183,2]
[353993322,1740175864797,-999.03,0.00012183,2]
[353993323,1740175864807,-772.25,0.00012183,2]
[353993324,1740175864817,-687.87,0.00012183,2]
[353993325,1740175864826,-798.38,0.00012183,2]
[353993326,1740175864836,-1330.6,0.00012183,2]
[353993327,1740175864845,-580.79,0.00012183,2]
[353993328,1740175864857,-500.0,0.00012183,2]
[353993329,1740175864866,-1652.61,0.00012183,2]
[353993330,1740175864875,-584.29,0.00012183,2]
[353993331,1740175864886,-1064.57,0.00012183,2]
[353993332,1740175864895,-1257.4,0.00012183,2]
[353993333,1740175864905,-617.67,0.00012183,2]
[353993334,1740175864915,-1008.78,0.00012183,2]
[353993335,1740175864925,-934.47,0.00012183,2]
[353993336,1740175864934,-607.43,0.00012183,2]
[353993337,1740175864944,-1149.16,0.00012183,2]
[353993338,1740175864953,-557.37,0.00012183,2]
[353993339,1740175864963,-500.0,0.00012183,2]
[353993340,1740175864973,-1059.67,0.00012183,2]
[353993341,1740175864983,-713.85,0.00012183,2]
[353993342,1740175864993,-619.22,0.00012183,2]
[353993343,1740175865003,-640.25964858,0.00012183,2]
[353993344,1740175865012,-500.0,0.00012183,2]
[353993345,1740175865022,-877.35,0.00012183,2]
[353993346,1740175865032,-1059.0,0.00012183,2]
[353993347,1740175865042,-1371.99,0.00012183,2]
[353993348,1740175865051,-1195.87,0.00012183,2]
[353993349,1740175865061,-500.0,0.00012183,2]
[353993350,1740175865071,-1159.59,0.00012183,2]
[353993351,1740175865081,-500.0,0.00012183,2]
[353993352,1740175865091,-716.76,0.00012183,2]
[353993353,1740175865101,-500.0,0.00012183,2]
[353993354,1740175865111,-2524.55,0.00012183,2]
[353993355,1740175865121,-500.0,0.00012183,2]
[353993356,1740175865131,-500.0,0.00012184,2]
[353993357,1740175865142,-523.1630846,0.00012184,2]
[353993358,1740175865151,-831.16,0.00012184,2]
[353993359,1740175865162,-672.19,0.00012184,2]
[353993360,1740175865171,-614.03,0.00012184,2]
[353993361,1740175865181,-586.13,0.00012184,2]
[353993362,1740175865191,-535.4967789,0.00012184,2]
[353993363,1740175865201,-500.0,0.00012184,2]
[353993364,1740175865211,-500.0,0.00012184,2]
[353993365,1740175865221,-500.0,0.00012184,2]
[353993366,1740175865230,-433.25845856,0.00012184,2]
[353993367,1740175865239,-500.0,0.00012184,2]
[353993368,1740175865249,-500.0,0.00012184,2]
[353993369,1740175865259,-596.02,0.00012184,2]
[353993370,1740175865268,-907.74,0.00012184,2]
[353993371,1740175865278,-633.15,0.00012184,2]
[353993372,1740175865287,-1053.43,0.00012184,2]
[353993373,1740175865296,-500.0,0.00012184,2]
[353993374,1740175865305,-505.52,0.00012184,2]
[353993375,1740175865315,-640.1,0.00012184,2]
[353993376,1740175865324,-349.94007338,0.00012184,2]
[353993377,1740175865334,-500.0,0.00012185,2]
[353993378,1740175865343,-271.89,0.00012185,2]
[353993379,1740175865353,-500.0,0.00012185,2]
[353993380,1740175865362,-500.0,0.00012185,2]
[353993381,1740175865371,-390.27384506,0.00012185,2]
[353993382,1740175865380,-500.0,0.00012185,2]
[353993383,1740175865390,-587.93,0.00012185,2]
[353993384,1740175865399,-546.63,0.00012185,2]
[353993385,1740175865408,-515.89,0.00012185,2]
[353993386,1740175865418,-579.03,0.00012185,2]
[353993387,1740175865427,-276.45674351,0.00012185,2]
[353993388,1740175865436,-500.0,0.00012185,2]
[353993389,1740175865445,-644.72,0.00012185,2]
[353993390,1740175865455,-500.0,0.00012185,2]
[353993391,1740175865465,-712.4,0.00012185,2]
[353993392,1740175865475,-649.39,0.00012185,2]
[353993393,1740175865484,-500.0,0.00012185,2]
[353993394,1740175865493,-1563.0,0.00012185,2]
[353993395,1740175865502,-500.0,0.00012185,2]
[353993396,1740175865512,-1053.07,0.00012185,2]
[353993397,1740175865522,-1338.11,0.00012185,2]
[353993398,1740175865532,-1204.61,0.00012185,2]
[353993399,1740175865541,-524.75,0.00012185,2]
[353993400,1740175865551,-516.44,0.00012185,2]
[353993401,1740175865560,-1032.03,0.00012185,2]
[353993402,1740175865570,-183.8099554,0.00012185,2]
[353993403,1740175865579,-500.0,0.00012185,2]
[353993404,1740175865588,-768.2,0.00012185,2]
[353993405,1740175865598,-500.0,0.00012185,2]
[353993406,1740175865608,-785.25,0.00012185,2]
[353993407,1740175865619,-838.82,0.00012185,2]
[353993408,1740175865628,-1010.76,0.00012185,2]
[353993409,1740175865638,-2224.65,0.00012185,2]
[353993410,1740175865648,-500.0,0.00012185,2]
[353993411,1740175865659,-557.6,0.00012185,2]
[353993412,1740175865669,-500.0,0.00012185,2]
[353993413,1740175865678,-500.0,0.00012185,2]
[353993414,1740175865692,-500.0,0.00012185,2]
[353993415,1740175865702,-373.0,0.00012192,2]
[353993416,1740175865712,-1928.0,0.00012193,2]
[353993417,1740175865721,-1000.0,0.00012206,2]
[353993418,1740175865731,-150.0,0.00012211,2]
[353993419,1740175865740,-150.0,0.00012218,2]
[353993420,1740175865749,-150.0,0.00012236,2]
[353993421,1740175865758,-840.36,0.00012265,2]
[353993422,1740175865767,-550.99,0.00012265,2]
[353993423,1740175865777,-456.441457,0.00012265,2]
[353993424,1740175865787,-1301.04,0.00012265,2]
[353993425,1740175865797,-731.38,0.00012265,2]
[353993426,1740175865806,-660.858377,0.00012265,2]
[353993427,1740175865815,-643.93,0.00012265,2]
[353993428,1740175865825,-770.4,0.00012265,2]
[353993429,1740175865835,-1037.35,0.00012265,2]
[353993430,1740175865845,-761.15,0.00012265,2]
[353993431,1740175865854,-694.42,0.00012265,2]
[353993432,1740175865864,-999.84,0.00012265,2]
[353993433,1740175865873,-2978.62,0.00012265,2]
[353993434,1740175865882,-531.77,0.00012265,2]
[353993435,1740175865892,-1077.31,0.00012265,2]
[353993436,1740175865902,-500.0,0.00012265,2]
[353993437,1740175865911,-772.25,0.00012265,2]
[353993438,1740175865920,-687.87,0.00012265,2]
[353993439,1740175865930,-999.03,0.00012265,2]
[353993440,1740175865939,-798.38,0.00012265,2]
[353993441,1740175865948,-1330.6,0.00012265,2]
[353993442,1740175865957,-580.79,0.00012265,2]
[353993443,1740175865966,-500.0,0.00012265,2]
[353993444,1740175865976,-1652.61,0.00012265,2]
[353993445,1740175865985,-584.29,0.00012265,2]
[353993446,1740175865994,-1064.57,0.00012265,2]
[353993447,1740175866003,-1257.4,0.00012265,2]
[353993448,1740175866012,-617.67,0.00012265,2]
[353993449,1740175866021,-1008.78,0.00012265,2]
[353993450,1740175866031,-934.47,0.00012265,2]
[353993451,1740175866040,-607.43,0.00012265,2]
[353993452,1740175866049,-1149.16,0.00012265,2]
[353993453,1740175866058,-557.37,0.00012265,2]
[353993454,1740175866067,-500.0,0.00012265,2]
[353993455,1740175866077,-1059.67,0.00012265,2]
[353993456,1740175866086,-713.85,0.00012265,2]
[353993457,1740175866095,-619.22,0.00012265,2]
[353993458,1740175866104,-500.0,0.00012265,2]
[353993459,1740175866116,-877.35,0.00012265,2]
[353993460,1740175866126,-1059.0,0.00012265,2]
[353993461,1740175866136,-1371.99,0.00012265,2]
[353993462,1740175866145,-1195.87,0.00012265,2]
[353993463,1740175866155,-500.0,0.00012265,2]
[353993464,1740175866164,-1159.59,0.00012265,2]
[353993465,1740175866173,-500.0,0.00012265,2]
[353993466,1740175866182,-716.76,0.00012265,2]
[353993467,1740175866191,-500.0,0.00012265,2]
[353993468,1740175866200,-2524.55,0.00012265,2]
[353993469,1740175866209,-500.0,0.00012265,2]
[353993470,1740175866218,-500.0,0.00012266,2]
[353993471,1740175866228,-831.16,0.00012266,2]
[353993472,1740175866237,-672.19,0.00012266,2]
[353993473,1740175866247,-614.03,0.00012266,2]
[353993474,1740175866256,-586.13,0.00012266,2]
[353993475,1740175866266,-500.0,0.00012266,2]
[353993476,1740175866275,-500.0,0.00012266,2]
[353993477,1740175866285,-500.0,0.00012266,2]
[353993478,1740175866294,-599.02,0.00012266,2]
[353993479,1740175866303,-500.0,0.00012266,2]
[353993480,1740175866314,-404.66644645,0.00012266,2]
[353993481,1740175866375,-191.35355355,0.00012266,2]
[353993482,1740175866384,-329.05644645,0.00012266,2]
[353993483,1740175866395,-578.68355355,0.00012266,2]
[353993484,1740175866405,-505.12,0.00012266,2]
[353993485,1740175866414,-457.38581987,0.00012266,2]
[353993486,1740175866426,-42.61418013,0.00012266,2]
[353993487,1740175866435,-273.98061987,0.00012266,2]
[353993488,1740175866466,3034.19351581,8.66e-05,2]
[353993489,1740175866486,565.80648419,8.66e-05,2]
[353993490,1740175866500,-478.0,0.00012266,2]
[353993491,1740175866511,-20.24938013,0.00012266,2]
[353993492,1740175866521,-633.15,0.00012266,2]
[353993493,1740175866530,-500.0,0.00012266,2]
[353993494,1740175866539,-1053.43,0.00012266,2]
[353993495,1740175866548,-500.0,0.00012266,2]
[353993496,1740175866558,-1338.15,0.00012266,2]
[353993497,1740175866567,-505.52,0.00012266,2]
[353993498,1740175866576,-640.1,0.00012266,2]
[353993499,1740175866586,-500.0,0.00012266,2]
[353993500,1740175866595,-500.0,0.00012267,2]
[353993501,1740175866606,-500.0,0.00012267,2]
[353993502,1740175866619,-500.0,0.00012267,2]
[353993503,1740175866628,-500.0,0.00012267,2]
[353993504,1740175866638,-587.93,0.00012267,2]
[353993505,1740175866648,-546.63,0.00012267,2]
[353993506,1740175866659,-515.89,0.00012267,2]
[353993507,1740175866668,-579.03,0.00012267,2]
[353993508,1740175866678,-500.0,0.00012267,2]
[353993509,1740175866688,-644.72,0.00012267,2]
[353993510,1740175866699,-500.0,0.00012267,2]
[353993511,1740175866709,-712.4,0.00012267,2]
[353993512,1740175866719,-649.39,0.00012267,2]
[353993513,1740175866730,-500.0,0.00012267,2]
[353993514,1740175866740,-1563.0,0.00012267,2]